Workbook

Sheet Fasi 1-5
B1: Fase 1 | C1: Piano Investimenti | D1: Importo | E1: Ammortamenti Annui
C2: Brevetti | D2: 500000 | E2: =+D2/20 -> 25000
C3: Impianti | D3: 1000000 | E3: =+D3/10 -> 100000
C4: Attrezzature | D4: 800000 | E4: =+D4/12 -> 66666.66667
C5: Autocarri | D5: 100000 | E5: =+D5/4 -> 25000
C6: Totale | D6: =SUM(D2:D5) -> 2400000 | E6: =SUM(E2:E5) -> 216666.6667
D7: Rata | E7: Quota Capitale | F7: Interessi
B8: 1° Finanziamento | C8: Finanziamento (7 anni, 5%) | D8: =+PMT(5%,7,D6-100000) -> -397485.5824 | E8: =+D8-F8 -> -296609.8615 | F8: =+IPMT(5%,2,7,D6-100000) -> -100875.7209
B9: 2° Finanziamento | C9: Finanziamento (4 anni, 5%) | D9: =+PMT(5%,4,D5) -> -28201.18326 | E9: =+D9-F9 -> -23201.18326 | F9: =+IPMT(5%,1,4,D5) -> -5000
B11: Fase 2 | C11: Costi Fissi Industriali | D11: Importo
C12: Costo del lavoro | D12: 220000
C13: Utenze | D13: 12000
C14: Manutenzioni | D14: 55000
C15: Assicurazioni | D15: 25000
C16: Consulenze | D16: 28000
C17: Totale | D17: =SUM(D12:D16) -> 340000
B19: Fase 3 | C19: Costi Variabili Unitari | D19: Importo | E19: Incidenza sul prezzo di vendita
C20: Ricavo per Metro Tessuto Greggio | D20: 3.5
C21: Costo del Filato | D21: 2.5 | E21: =+D21/D20 -> 0.7142857143
C22: Costo dell'energia | D22: 0.28 | E22: =+D22/D20 -> 0.08
C23: Provvigioni | D23: 0.28 | E23: =+D23/D20 -> 0.08
C24: Imballaggi | D24: 0.1 | E24: =+D24/D20 -> 0.02857142857
C25: Tot. Costi Variabili | D25: =SUM(D21:D24) -> 3.16 | E25: =+D25/D20 -> 0.9028571429
C26: M.d.C. Unitario | D26: =+D20-D25 -> 0.34 | E26: =+D26/D20 -> 0.09714285714
B29: Fase 3b-3c | C29: Margine di Produzione | F29: Incidenza su magazzino M.P.
C30: Costo Industriale pieno per Metro T.G. | D30: 3.15 | F30: Incidenza su 100%
C31: =+C21 -> Costo del Filato | D31: =+D21 -> 2.5 | E31: =+D31/$D$30 -> 0.7936507937 | F31: =+E31/(E31+E33) -> 0.9615384615
C32: =+C22 -> Costo dell'energia | D32: =+D22 -> 0.28 | E32: =+D32/$D$30 -> 0.08888888889 | F32: 0
C33: =+C24 -> Imballaggi | D33: =+D24 -> 0.1 | E33: 0.03174603175 | F33: =+E33/(E33+E31) -> 0.03846153846
C34: =+C25 -> Tot. Costi Variabili | D34: =SUM(D31:D33) -> 2.88 | E34: =+D34/D30 -> 0.9142857143
C35: M.d.P. Unitario | D35: =+D30-D34 -> 0.27 | E35: =+D35/D30 -> 0.08571428571 | F35: =SUM(F31:F33) -> 1
D37: PESI
C38: Ponderazione Margini per calcolo Valore della Produzione di Break Even | D38: 0.9905186491 | E38: =+(D49-D56+'Fase 6'!D11)/D49 -> 0.9905186491 | F38: =+D38-E38 -> 0
D39: =100%-D38 -> 0.00948135094
C40: M.d.c. Ponderato | D40: =+D38*E26+E35*D39 -> 0.09703449885
B42: Fase 4 | C42: Costi Fissi Operativi | D42: =+D17 -> 340000
B43: Stima primo break even | C43: Finanziamento Piano Investimenti | D43: =-D8-D9 -> 425686.7657
C44: Interessi Passivi a breve anno precedente | D44: =+'Fase 6'!G6 -> 110189.622
B45: Flusso Fiscale | C45: Imposte Anno 1 | D45: =+'Fase 6'!G8 -> 8026.937715
C46: Acconto = 100% Imposte Anno 1 | D46: =+D45 -> 8026.937715
B47: Uscite Finanziarie Fisse | C47: Somma Flussi in Uscita | D47: =SUM(D42:D46) -> 891930.2631
B49: Valore della Produzione | C49: Break Even Finanziario | D49: =+D47/D40 -> 9191888.181 | E49: =+"(Flussi in uscita/M.d.C.% = "&TEXT(D40,"0,00%")&")" -> (Flussi in uscita/M.d.C.% = 9,70%)
B51: Fase 5
B52: Stima CCNC Attivo | C52: Acquisti M.P. Giornalieri | D52: =+(D49/360)*(E21+E24)*D38+(D49/360)*(E31+E33)*D39 -> 18987.37014
C53: Magazzino Mat. Prima | D53: =+D52*E53 -> 759494.8056 | E53: 40 | F53: gg
C55: Costo del Venduto Giornaliero | D55: =+(D17+E6+((E21+E22+E24)*D49*D38)+((E31+E32+E33)*D49*D39))/360 -> 22578.46014
C56: Magazzino P. Finito | D56: =+D55*E56 -> 677353.8043 | E56: 30 | F56: gg
C58: Fatturato Giornaliero | D58: =+(D49-D56+'Fase 6'!D11)/360 -> 25290.93518 | E58: Fatturato/360
C59: Crediti V/Clienti | D59: =+D58*E59*(1+IVA!C2) -> 3702592.91 | E59: 120 | F59: gg
C61: Delta Magazzino M.P. | D61: =+D53-'Fase 6'!D10 -> 22556.09825
C62: Acquisti Giornalieri | D62: =+D52+(D14/360)+D61/360 -> 19202.80375
B63: Stima CCNC Passivo | C63: Debiti V/Fornitori | D63: =+(D62*E63)*(1+IVA!C2) -> 2811290.469 | E63: 120 | F63: gg
C65: CCNC | D65: =+D59+D53+D56-D63 -> 2328151.051

Sheet IVA
B1: Momento 0
B2: Aliquota Iva in vigore | C2: 0.22
B3: Credito Anno 1 | C3: =+'Fase 6'!D12 -> 661024.1906
B4: Iva su Investimenti | C4: =+'Fasi 1-5'!D5*C2 -> 22000 | D4: a Credito
C6: 1 | D6: 2 | E6: 3 | F6: 4 | G6: 5 | H6: 6 | I6: 7 | J6: 8 | K6: 9 | L6: 10 | M6: 11 | N6: 12
B7: Sviluppo Iva Mensile
B8: Credito | C8: =+(('Fasi 1-5'!D17-'Fasi 1-5'!D15-'Fasi 1-5'!D12)/12*C2)-(SUM('Fase 7-7c'!D7:D10)/12*C2) -> 154321.0903 | D8: =+C8 -> 154321.0903 | E8: =+D8 -> 154321.0903 | F8: 154321.0903 | G8: 154321.0903 | H8: 154321.0903 | I8: 154321.0903 | J8: 154321.0903 | K8: 154321.0903 | L8: 154321.0903 | M8: 154321.0903 | N8: 154321.0903
B9: Debito | C9: =+'Fase 7-7c'!D3/12*C2 -> 166920.1722 | D9: =+C9 -> 166920.1722 | E9: 166920.1722 | F9: 166920.1722 | G9: 166920.1722 | H9: 166920.1722 | I9: 166920.1722 | J9: 166920.1722 | K9: 166920.1722 | L9: 166920.1722 | M9: 166920.1722 | N9: 166920.1722
B11: Saldo a Credito | C11: =+C4+C3+C8-C9 -> 670425.1087 | D11: =+C11+D8-D9-D10 -> 657826.0268 | E11: 645226.945 | F11: 632627.8631 | G11: 620028.7812 | H11: =+G11+H8-H9-H10 -> 607429.6994 | I11: =+H11+I8-I9-I10 -> 594830.6175 | J11: 582231.5356 | K11: 569632.4538 | L11: 557033.3719 | M11: 544434.29 | N11: 531835.2082
B14: Fatturato | C14: =+C9/0.22 -> 758728.0553 | D14: =+D9/0.22 -> 758728.0553 | E14: 758728.0553 | F14: 758728.0553 | G14: 758728.0553 | H14: 758728.0553 | I14: 758728.0553 | J14: 758728.0553 | K14: 758728.0553 | L14: 758728.0553 | M14: 758728.0553 | N14: 758728.0553
B15: Iva | C15: =+C14*0.22 -> 166920.1722 | D15: =+D14*0.22 -> 166920.1722 | E15: 166920.1722 | F15: 166920.1722 | G15: 166920.1722 | H15: 166920.1722 | I15: 166920.1722 | J15: 166920.1722 | K15: 166920.1722 | L15: 166920.1722 | M15: 166920.1722 | N15: 166920.1722
B16: Vendite lordo IVA | C16: =+C14+C15 -> 925648.2275 | D16: =+D14+D15 -> 925648.2275 | E16: 925648.2275 | F16: 925648.2275 | G16: 925648.2275 | H16: 925648.2275 | I16: 925648.2275 | J16: 925648.2275 | K16: 925648.2275 | L16: 925648.2275 | M16: 925648.2275 | N16: 925648.2275

Sheet Fase 6 Budget di Cassa
B1: ANNO 1 | E1: ANNO 2
B2: 10 | C2: 11 | D2: 12 | E2: 1 | F2: 2 | G2: 3 | H2: 4 | I2: 5 | J2: 6 | K2: 7 | L2: 8 | M2: 9 | N2: 10 | O2: 11 | P2: 12 | Q2: TOTALE
A3: Entrate
A4: Liquidità iniziale | Q4: =+E4 -> 0
A5: Incassi Vendite (iva inclusa) | B5: 1243506.442 | C5: 1065862.665 | D5: 1243506.442 | E5: =873657.922072071*(1+IVA!C2) -> 1065862.665 | F5: =728048.268393392*(1+IVA!C2) -> 888218.8874 | G5: =728048.268393392*(1+IVA!C2) -> 888218.8874 | I5: =+'Fase 7-7c'!D3/12*(1+IVA!$C$2) -> 925648.2275 | J5: =+I5 -> 925648.2275 | K5: 925648.2275 | L5: 925648.2275 | M5: =+L5 -> 925648.2275 | N5: 925648.2275 | O5: 925648.2275 | P5: 925648.2275 | Q5: =SUM(E5:P5) -> 10247486.26 | S5: =+P5*4 -> 3702592.91
A6: Equity Capital | E6: 0 | Q6: =SUM(E6:P6) -> 0
A7: Finanziamento Investimenti | E7: =+'Fasi 1-5'!D5 -> 100000 | Q7: 100000
A8: Totale Entrate | B8: 1243506.442 | C8: 1065862.665 | D8: 1243506.442 | E8: =SUM(E5:E7) -> 1165862.665 | F8: =SUM(F5:F7) -> 888218.8874 | G8: 888218.8874 | H8: 0 | I8: 925648.2275 | J8: 925648.2275 | K8: 925648.2275 | L8: 925648.2275 | M8: 925648.2275 | N8: 925648.2275 | O8: 925648.2275 | P8: 925648.2275 | Q8: =SUM(Q4:Q7) -> 10347486.26
A10: Uscite
A11: Investimenti | E11: =+'Fasi 1-5'!D5*(1+IVA!C2) -> 122000 | Q11: =SUM(E11:P11) -> 122000
A12: Finanziamenti quota Capitale | B12: 23540.4652 | C12: 23540.4652 | D12: 23540.4652 | E12: =-('Fasi 1-5'!E8+'Fasi 1-5'!E9)/12 -> 26650.9204 | F12: =+E12 -> 26650.9204 | G12: =+F12 -> 26650.9204 | H12: 26650.9204 | I12: 26650.9204 | J12: 26650.9204 | K12: 26650.9204 | L12: 26650.9204 | M12: 26650.9204 | N12: 26650.9204 | O12: 26650.9204 | P12: 26650.9204 | Q12: =SUM(E12:P12) -> 319811.0448
A13: Finanziamenti quota Interessi | B13: 9583.333333 | C13: 9583.333333 | D13: 9583.333333 | E13: =-('Fasi 1-5'!F8+'Fasi 1-5'!F9)/12 -> 8822.97674 | F13: =+E13 -> 8822.97674 | G13: 8822.97674 | H13: 8822.97674 | I13: 8822.97674 | J13: 8822.97674 | K13: 8822.97674 | L13: 8822.97674 | M13: 8822.97674 | N13: 8822.97674 | O13: 8822.97674 | P13: 8822.97674 | Q13: =SUM(E13:P13) -> 105875.7209
A14: Interessi su PFN a breve | F14: =+'Fasi 1-5'!D44 -> 110189.622 | Q14: 110189.622
Q15: 0
A16: =+'Fasi 1-5'!C12 -> Costo del lavoro | B16: 16666.66667 | C16: 16666.66667 | D16: 16666.66667 | E16: =+'Fasi 1-5'!D12/12 -> 18333.33333 | F16: =+E16 -> 18333.33333 | G16: =+F16 -> 18333.33333 | H16: =+G16 -> 18333.33333 | I16: 18333.33333 | J16: 18333.33333 | K16: 18333.33333 | L16: 18333.33333 | M16: 18333.33333 | N16: 18333.33333 | O16: 18333.33333 | P16: 18333.33333 | Q16: 220000
A17: =+'Fasi 1-5'!C13 -> Utenze | B17: 1016.666667 | C17: 1016.666667 | D17: 1016.666667 | E17: =+'Fasi 1-5'!D13*(1+IVA!C2)/12 -> 1220 | F17: =+E17 -> 1220 | G17: 1220 | H17: 1220 | I17: 1220 | J17: 1220 | K17: 1220 | L17: 1220 | M17: 1220 | N17: 1220 | O17: 1220 | P17: 1220 | Q17: =SUM(E17:P17) -> 14640
A18: =+'Fasi 1-5'!C14 -> Manutenzioni | B18: 5083.333333 | C18: 5083.333333 | D18: 5083.333333 | E18: =4166.66666666667*(1+IVA!C2) -> 5083.333333 | F18: =4166.66666666667*(1+IVA!C2) -> 5083.333333 | G18: =4166.66666666667*(1+IVA!C2) -> 5083.333333 | I18: =+'Fasi 1-5'!D14*(1+IVA!C2)/12 -> 5591.666667 | J18: 5591.666667 | K18: 5591.666667 | L18: 5591.666667 | M18: 5591.666667 | N18: 5591.666667 | O18: 5591.666667 | P18: 5591.666667 | Q18: =SUM(E18:P18) -> 59983.33333 | S18: =+P18*4 -> 22366.66667
A19: =+'Fasi 1-5'!C15 -> Assicurazioni | E19: =+'Fasi 1-5'!D15 -> 25000 | Q19: =SUM(E19:P19) -> 25000
A20: =+'Fasi 1-5'!C16 -> Consulenze | B20: 3050 | C20: 3050 | D20: 3050 | E20: =+'Fasi 1-5'!D16*(1+IVA!C2)/12 -> 2846.666667 | F20: 2846.666667 | G20: 2846.666667 | H20: 2846.666667 | I20: 2846.666667 | J20: 2846.666667 | K20: 2846.666667 | L20: 2846.666667 | M20: 2846.666667 | N20: 2846.666667 | O20: 2846.666667 | P20: 2846.666667 | Q20: =SUM(E20:P20) -> 34160
Q21: 0
A22: =+'Fasi 1-5'!C21 -> Costo del Filato | B22: 888218.8874 | C22: 761330.4749 | D22: 888218.8874 | E22: =624041.372908622*(1+IVA!C2) -> 761330.4749 | F22: =520034.477423852*(1+IVA!C2) -> 634442.0625 | G22: =520034.477423852*(1+IVA!C2) -> 634442.0625 | I22: =-'Fase 7-7c'!D7*(1+IVA!C2)/12 -> 670414.3754 | J22: =+I22 -> 670414.3754 | K22: 670414.3754 | L22: 670414.3754 | M22: 670414.3754 | N22: 670414.3754 | O22: 670414.3754 | P22: 670414.3754 | Q22: =SUM(E22:P22) -> 7393529.603 | S22: =+P22*4 -> 2681657.502
A23: =+'Fasi 1-5'!C22 -> Costo dell'energia | B23: 91359.65699 | C23: 76133.04749 | D23: 76133.04749 | E23: =-'Fase 7-7c'!D8*(1+IVA!C2)/12 -> 74839.44969 | F23: =+E23 -> 74839.44969 | G23: =+F23 -> 74839.44969 | H23: 74839.44969 | I23: 74839.44969 | J23: 74839.44969 | K23: 74839.44969 | L23: 74839.44969 | M23: 74839.44969 | N23: 74839.44969 | O23: 74839.44969 | P23: 74839.44969 | Q23: =SUM(E23:P23) -> 898073.3963
A24: =+'Fasi 1-5'!C23 -> Provvigioni | B24: 85269.01319 | C24: 71057.511 | D24: 71057.511 | E24: =-'Fase 7-7c'!D9*(1+IVA!C2)/12 -> 74051.8582 | F24: =+E24 -> 74051.8582 | G24: 74051.8582 | H24: 74051.8582 | I24: =+H24 -> 74051.8582 | J24: 74051.8582 | K24: 74051.8582 | L24: 74051.8582 | M24: 74051.8582 | N24: 74051.8582 | O24: 74051.8582 | P24: 74051.8582 | Q24: =SUM(E24:P24) -> 888622.2984
A25: =+'Fasi 1-5'!C24 -> Imballaggi | B25: 35528.7555 | C25: 30453.219 | D25: 35528.7555 | E25: =24961.6549163449*(1+IVA!C2) -> 30453.219 | F25: =20801.3790969541*(1+IVA!C2) -> 25377.6825 | G25: =20801.3790969541*(1+IVA!C2) -> 25377.6825 | I25: =-'Fase 7-7c'!D10*(1+IVA!C2)/12 -> 26816.57502 | J25: 26816.57502 | K25: 26816.57502 | L25: 26816.57502 | M25: 26816.57502 | N25: 26816.57502 | O25: 26816.57502 | P25: 26816.57502 | Q25: =SUM(E25:P25) -> 295741.1841 | S25: =+P25*4 -> 107266.3001
A26: Versamento Imposte | J26: =+'Fasi 1-5'!D45 -> 8026.937715 | O26: =+'Fasi 1-5'!D46 -> 8026.937715 | Q26: 16053.87543
A27: Totale Uscite | B27: 1159316.778 | C27: 997914.7176 | D27: 1129878.667 | E27: =SUM(E11:E26) -> 1150632.232 | F27: =SUM(F11:F26) -> 981857.9053 | G27: =SUM(G11:G26) -> 871668.2833 | H27: 206765.205 | I27: 909587.8222 | J27: =SUM(J11:J26) -> 917614.7599 | K27: 909587.8222 | L27: 909587.8222 | M27: 909587.8222 | N27: 909587.8222 | O27: 917614.7599 | P27: =SUM(P11:P26) -> 909587.8222 | Q27: 10503680.08 | S27: =SUM(S18:S25) -> 2811290.469
A29: Saldo Entrate-Uscite | B29: -2385368.164 | C29: -2317420.216 | D29: -2203792.441 | E29: =+D29+E8-E27 -> -2188562.008 | F29: =+E29+F8-F27 -> -2282201.026 | G29: =+F29+G8-G27 -> -2265650.422 | H29: -2472415.627 | I29: -2456355.221 | J29: -2448321.754 | K29: -2432261.348 | L29: -2416200.943 | M29: -2400140.538 | N29: -2384080.132 | O29: -2376046.665 | P29: -2359986.26 | Q29: =+Q8-Q27 -> -156193.819
E31: =+IF(E29=MIN($E$29:$P$29),E29,0) -> 0 | F31: =+IF(F29=MIN($E$29:$P$29),F29,0) -> 0 | G31: 0 | H31: -2472415.627 | I31: 0 | J31: 0 | K31: 0 | L31: 0 | M31: 0 | N31: 0 | O31: 0 | P31: 0
E32: =+IF(E31<>0,"Picco esigenze di liquidità","") ->  | F32: =+IF(F31<>0,"Picco esigenze di liquidità","") ->  | H32: Picco esigenze di liquidità
A34: DSCR CALCULATION METODO 1 | G34: Data di calcolo = Settembre anno 1 | J34: Data di calcolo = Dicembre anno 1 | M34: Data di calcolo = Marzo anno 2 | P34: Data di calcolo = Giugno anno 2
A35: Erogazione di nuova finanza (vedi HP sottostanti) | G35: =+IF($B$43="Sì",-G29,IF($B$44="Sì",SUM(E5:G5)*$C$44,$B$45)) -> 2265650.422 | J35: =+IF($B$43="Sì",-J29,IF($B$44="Sì",SUM(IVA!E16:H16)*$C$44,$C$45)) -> 2448321.754 | M35: =+IF($B$43="Sì",-M29,IF($B$44="Sì",SUM(IVA!H16:K16)*$C$44,$D$45)) -> 2400140.538 | P35: =+IF($B$43="Sì",-P29,IF($B$44="Sì",SUM(IVA!K16:N16)*$C$44,$E$45)) -> 2359986.26
A36: Numeratore | G36: =+G29+(SUM(B12:G12,B13:G13,B14:G14)) -> -1949667.713 | J36: =+J29+(SUM(E12:J12,E13:J13,E14:J14)) -> -2125288.749 | M36: =+M29+(SUM(H12:M12,H13:M13,H14:M14)) -> -2187297.155 | P36: =+P29+(SUM(K12:P12,K13:P13,K14:P14)) -> -2147142.877
A37: SALDO NUMERATORE | G37: =+G35+G36 -> 315982.7091 | J37: =+J35+J36 -> 323033.0049 | M37: =+M35+M36 -> 212843.3828 | P37: =+P35+P36 -> 212843.3828
A39: DENOMINATORE | G39: =+SUM(B12:G12,B13:G13,B14:G14) -> 315982.7091 | J39: =+SUM(E12:J12,E13:J13,E14:J14) -> 323033.0049 | M39: =+SUM(H12:M12,H13:M13,H14:M14) -> 212843.3828 | P39: =+SUM(K12:P12,K13:P13,K14:P14) -> 212843.3828
A41: DSCR | G41: =+G37/G39 -> 1 | J41: =+J37/J39 -> 1 | M41: =+M37/M39 -> 1 | P41: =+P37/P39 -> 1
A43: HP 1 = Copertura totale esigenze | B43: Sì
A44: HP 2 = Utilizzo foglio commerciale | B44: No | C44: 1 | D44: Percentuale portafoglio anticipabile
A45: HP 3 = copertura fissa | B45: 2000000 | C45: 2500000 | D45: 2500000 | E45: 2500000
A46: Date check DSCR (copertura fissa) | B46: 2021-03-31 | C46: 2021-06-30 | D46: 2021-09-30 | E46: 2021-12-31
A71: Sì
A72: No

Sheet DSCR2 RF OIC10
A1: Rendiconto finanziario calcolato con il metodo indiretto | E1: Conto Economico anno 2 al mese 6
C3: =+'Fase 6 Budget di Cassa'!J34 -> Data di calcolo = Dicembre anno 1 | E3: Fatturato | F3: =+SUM(IVA!C14:H14) -> 4552368.332
A4: Rendiconto finanziario secondo con il metodo indiretto al mese | C4: =+'Fase 6 Budget di Cassa'!J2 -> 6 | E4: Variazione Magazzino P.F. | F4: =+('Fasi 1-5'!D56-'DSCR2 RF OIC10'!F40)/2 -> 43575.75882
E5: Valore della Produzione | F5: =+F3+F4 -> 4595944.091
A6: A. Flussi finanziari derivanti dalla gestione reddituale (metodo indiretto) | B6: A. Flussi finanziari derivanti dalla gestione reddituale (metodo indiretto)
E7: =+'Fasi 1-5'!C21 -> Costo del Filato | F7: =-'Fase 6 Budget di Cassa'!I22*C4/(1+IVA!C2) -> -3297119.879
B8: Utile (perdita) dell’esercizio | C8: =+F26 -> 34311.49508 | E8: =+'Fasi 1-5'!C22 -> Costo dell'energia | F8: =-'Fase 6 Budget di Cassa'!E23*C4/(1+IVA!C2) -> -368062.8673
B9: Imposte sul reddito | C9: =-F25 -> 10835.20897 | E9: =+'Fasi 1-5'!C23 -> Provvigioni | F9: =-'Fase 6 Budget di Cassa'!E24*C4/(1+IVA!C2) -> -364189.4666
B10: Interessi passivi/(interessi attivi) | C10: =-F22-F23 -> 109985.0942 | E10: =+'Fasi 1-5'!C24 -> Imballaggi | F10: =-'Fase 6 Budget di Cassa'!I25*C4/(1+IVA!C2) -> -131884.7952
B11: (Dividendi) | E11: Variazione Magazzino M.P. | F11: =+('Fasi 1-5'!D53-'DSCR2 RF OIC10'!F39)/2 -> 11278.04912
B12: (Plusvalenze)/minusvalenze derivanti dalla cessione di attività | E12: Costi Variabili | F12: =SUM(F7:F11) -> -4149978.959
A13: 1. Utile (perdita) dell’esercizio prima d’imposte sul reddito, interessi, dividendi e plus/minusvalenze da cessione | C13: =SUM(C8:C12) -> 155131.7982 | E13: =+'Fasi 1-5'!C12 -> Costo del lavoro | F13: =-'Fase 6 Budget di Cassa'!E16*C4 -> -110000
E14: =+'Fasi 1-5'!C13 -> Utenze | F14: =-'Fase 6 Budget di Cassa'!E17*C4/(1+IVA!C2) -> -6000
B15: Rettifiche per elementi non monetari che non hanno avuto contropartita nel capitale circolante netto | E15: =+'Fasi 1-5'!C14 -> Manutenzioni | F15: =-'Fase 6 Budget di Cassa'!I18*C4/(1+IVA!C2) -> -27500
B16: Accantonamenti al trattamento di fine rapporto di lavoro subordinato | E16: =+'Fasi 1-5'!C15 -> Assicurazioni | F16: =-'Fase 6 Budget di Cassa'!E19 -> -25000
B17: Accantonamenti ai fondi rischi ed oneri | E17: =+'Fasi 1-5'!C16 -> Consulenze | F17: =-'Fase 6 Budget di Cassa'!E20*C4/(1+IVA!C2) -> -14000
B18: Accantonamento ai fondi | C18: =+C16+C17 -> 0 | E18: Costi Fissi | F18: =SUM(F13:F17) -> -182500
B19: Ammortamenti delle immobilizzazioni immateriali | E19: EBITDA/MOL | F19: =+F3+F12+F18+F4 -> 263465.1316
B20: Ammortamenti delle immobilizzazioni materiali | E20: Ammortamenti | F20: =-'Fasi 1-5'!E6/12*C4 -> -108333.3333
B21: Ammortamenti delle immobilizzazioni | C21: =-F20 -> 108333.3333 | E21: EBIT/Red.Operativo | F21: =+F19+F20 -> 155131.7982
B22: Svalutazione dei crediti | E22: Interessi passivi a lungo | F22: =-'Fase 6 Budget di Cassa'!E13*C4 -> -52937.86044
B23: Svalutazioni di beni materiali ed immateriali | E23: Interessi passivi a breve | F23: =-'Fase 7b'!C28/2 -> -57047.23375
B24: Svalutazione per perdite durevoli di valore | C24: =SUM(C22:C23) -> 0 | E24: Utile Ante Imposte | F24: =+F21+F22+F23 -> 45146.70405
B25: Altre rettifiche per elementi non monetari | E25: Imposte | F25: =IF(F24<0,(-(F24-F22-F23)*I26),(-(I25*F24+G26*(+F24-F23-F22)))) -> -10835.20897 | H25: IRES | I25: 0.24
B26: TOTALE RETTIFICHE | C26: =+C18+C21+C24+C25 -> 108333.3333 | E26: Utile Netto | F26: =+F24+F25 -> 34311.49508 | H26: IRAP | I26: 0.039
A27: 2. Flusso finanziario prima delle variazioni del ccn | C27: =+C13+C26 -> 263465.1316
B29: Variazioni del capitale circolante netto
B30: Decremento/(incremento) delle rimanenze | C30: =+F39+F40-F56-F57 -> -54853.80795 | E30: Investimenti e Coperture anno 1
B31: Decremento/(incremento) dei crediti vs clienti | C31: =+F38-F55 -> -860292.4702
B32: Incremento/(decremento) dei debiti verso fornitori | C32: =+F42-F59 -> 684617.2847 | E32: Attivo Immobilizzato | F32: =+'Fase 6'!D3 -> 2108333.333 | H32: Posizione Finanziaria Netta | I32: =+'Fase 6'!G3 -> 4331496.48
B33: Decremento/(incremento) ratei e risconti attivi | E33: Brevetti | F33: =+'Fase 6'!D4 -> 475000 | H33: Pos. Finanziaria Netta a M/L | I33: =+'Fase 6'!G4 -> 2017514.418
B34: Incremento/(decremento) ratei e risconti passivi | E34: Impianti | F34: =+'Fase 6'!D5 -> 900000 | H34: Pos. Finanziaria Netta a Breve | I34: =+'Fase 6'!G5 -> 2203792.441
B35: Altre variazioni del capitale circolante netto | C35: =+F41-F58 -> 53594.4912 | E35: Attrezzature | F35: =+'Fase 6'!D6 -> 733333.3333 | H35: Interessi da liquidare | I35: =+'Fase 6'!G6 -> 110189.622
B36: TOTALE VARIAZIONI DEL CCN | C36: =SUM(C30:C35) -> -176934.5022 | F36: =+'Fase 6'!D7 -> 0
A37: 3. Flusso finanziario dopo le variazioni del ccn | C37: =+C27+C36 -> 86530.62933 | E37: Capitale Circolante | F37: =+'Fase 6'!D8 -> 2703792.441 | H37: Posizione Tributaria Netta | I37: =+'Fase 6'!G8 -> 8026.937715
E38: Crediti V/Clienti | F38: =+'Fase 6'!D9 -> 2842300.44
A39: Altre rettifiche | E39: Magazzino Mat. Prima | F39: =+'Fase 6'!D10 -> 736938.7074
B40: Interessi incassati/(pagati) | C40: =+F22-I35 -> -163127.4825 | E40: Magazzino P. Finito | F40: =+'Fase 6'!D11 -> 590202.2867 | H40: Mezzi Propri | I40: =+'Fase 6'!G11 -> 472602.356
B41: (Imposte sul reddito pagate) | C41: =-I37-F25-I54 -> -8026.937715 | E41: Credito Iva | F41: =+'Fase 6'!D12 -> 661024.1906 | H41: Equity | I41: =+'Fase 6'!G12 -> 500000
B42: Dividendi incassati | E42: Debiti V/Fornitori | F42: =+'Fase 6'!D13 -> -2126673.184 | H42: Utile dell'esercizio | I42: =+'Fase 6'!G13 -> -27397.64398
B43: (Utilizzo del trattamento di fine rapporto di lavoro subordinato)
B44: (Utilizzo dei fondi rischi ed oneri) | E44: Totale Investimenti | F44: =+F32+F37 -> 4812125.774 | H44: Totale Coperture | I44: =+I32+I37+I40 -> 4812125.774
B45: Utilizzo dei fondi
B46: TOTALE ALTRE RETTIFICHE | C46: =+C45+C42+C41+C40 -> -171154.4202 | E46: Investimenti e Coperture anno 2 al mese 6
A47: 4. Flusso finanziario dopo le altre rettifiche | C47: =+C37+C46 -> -84623.79086
E48: Attivo Immobilizzato | F48: =+SUM(F49:F52) -> 2100000 | H48: Posizione Finanziaria Netta | I48: =+SUM(I49:I51) -> 4462977.883
A49: FLUSSO FINANZIARIO DELLA GESTIONE REDDITUALE (A) | C49: =+C47 -> -84623.79086 | E49: Brevetti | F49: =+F33-'Fasi 1-5'!E2/12*C4 -> 462500 | H49: Pos. Finanziaria Netta a M/L | I49: =+'DSCR2 RF OIC10'!I33+'Fasi 1-5'!D5+('Fasi 1-5'!E8+'Fasi 1-5'!E9)/12*C4 -> 1957608.895
E50: Impianti | F50: =+F34-'Fasi 1-5'!E3/12*C4 -> 850000 | H50: Pos. Finanziaria Netta a Breve | I50: =+F60-I54-I57-I49-I51 -> 2448321.754 | J50: =+I50+'Fase 6 Budget di Cassa'!J29 -> -3.725290298e-09 | K50: Double Check
A51: B. Flussi finanziari derivanti dall’attività d’investimento | B51: B. Flussi finanziari derivanti dall’attività d’investimento | E51: Attrezzature | F51: =+F35-'Fasi 1-5'!E4/12*C4 -> 700000 | H51: Interessi da liquidare | I51: =-F23 -> 57047.23375
E52: Autocarri | F52: =+'Fasi 1-5'!D5-'Fasi 1-5'!E5/12*C4 -> 87500
A53: Immobilizzazioni materiali | C53: =+F32+F20-F48 -> -100000
B54: (Investimenti)/Disinvestimenti | C54: =+C53 -> -100000 | E54: Capitale Circolante | F54: =+SUM(F55:F59) -> 2880726.943 | H54: Posizione Tributaria Netta | I54: =+I37-'Fase 6 Budget di Cassa'!J26-'DSCR2 RF OIC10'!F25 -> 10835.20897
E55: Crediti V/Clienti | F55: =+'Fase 6 Budget di Cassa'!J5*4 -> 3702592.91
A56: Immobilizzazioni immateriali | E56: Magazzino Mat. Prima | F56: =+F39+F11 -> 748216.7565
B57: (Investimenti)/Disinvestimenti | C57: =+C56 -> 0 | E57: Magazzino P. Finito | F57: =+F40+F4 -> 633778.0455 | H57: Mezzi Propri | I57: =+SUM(I58:I59) -> 506913.8511
E58: Credito Iva | F58: =+IVA!H11 -> 607429.6994 | H58: Equity | I58: =+I40 -> 472602.356
A59: Immobilizzazioni finanziarie | E59: Debiti V/Fornitori | F59: =-'Fase 6 Budget di Cassa'!I18*4-'Fase 6 Budget di Cassa'!I22*4-'Fase 6 Budget di Cassa'!I25*4 -> -2811290.469 | H59: Utile dell'esercizio | I59: =+F26 -> 34311.49508
B60: (Investimenti)/Disinvestimenti | E60: Totale Investimenti | F60: =+F48+F54 -> 4980726.943 | H60: Totale Coperture | I60: =+I54+I57+I48 -> 4980726.943
A62: Attività Finanziarie non immobilizzate
B63: (Investimenti)/Disinvestimenti
A65: Acquisizione di società controllate al netto delle disponibilità liquide
A67: Cessione di società controllate al netto delle disponibilità liquide
A69: FLUSSO FINANZIARIO DELL'ATTIVITA' DI INVESTIMENTO (B) | C69: =+C57+C54+C60+C63 -> -100000
A71: C. Flussi finanziari derivanti dall’attività di finanziamento | B71: C. Flussi finanziari derivanti dall’attività di finanziamento
A73: Mezzi di terzi
B74: Incremento/(decremento) debiti a breve verso banche | C74: =+I50-I34 -> 244529.3133
B75: Accensione (Rimborso) finanziamenti | C75: =+'Fasi 1-5'!D5 -> 100000
B76: Accensione (Rimborso) finanziamenti | C76: =-'Fase 6 Budget di Cassa'!F12*C4 -> -159905.5224
A78: Mezzi propri | B78: Mezzi propri
B79: Aumento/(Diminuzione) di capitale a pagamento
B80: Cessione (acquisto) di azioni proprie
B81: Dividendi (e acconti su dividendi) pagati
A82: FLUSSO FINANZIARIO DELL'ATTIVITA' DI FINANZIAMENTO (C) | C82: =+SUM(C74:C81) -> 184623.7909
A84: Incremento (decremento) delle disponibilità liquide (a ± b ± c) | B84: Incremento (decremento) delle disponibilità liquide (a ± b ± c) | C84: =+C82+C69+C49 -> 1.746229827e-10
B85: Disponibilità liquide all'inizio dell'esercizio | C85: 0
B87: Disponibilità liquide alla fine dell'esercizio | C87: 0
B89: Check | C89: =+C85-C87+C84 -> 1.746229827e-10
B91: DSCR CALCULATION
B92: NUMERATORE | C92: =+C49+C69+C75-C40-C87+C79+C74 -> 323033.0049
B94: DENOMINATORE | C94: =-C76-C40 -> 323033.0049
B96: DSCR | C96: =+C92/C94 -> 1

Sheet Fase 6
B1: Fase 6 | C1: Investimenti e Coperture al Momento 1
C3: Attivo Immobilizzato | D3: 2108333.333 | F3: Posizione Finanziaria Netta | G3: 4331496.48
C4: Brevetti | D4: 475000 | F4: Pos. Finanziaria Netta a M/L | G4: 2017514.418
C5: Impianti | D5: 900000 | F5: Pos. Finanziaria Netta a Breve | G5: 2203792.441
C6: Attrezzature | D6: 733333.3333 | F6: Interessi da liquidare | G6: 110189.622
C8: Capitale Circolante | D8: 2703792.441 | F8: Posizione Tributaria Netta | G8: 8026.937715
C9: Crediti V/Clienti | D9: 2842300.44
C10: Magazzino Mat. Prima | D10: 736938.7074
C11: Magazzino P. Finito | D11: 590202.2867 | F11: Mezzi Propri | G11: 472602.356
C12: Credito Iva | D12: 661024.1906 | F12: Equity | G12: 500000
C13: Debiti V/Fornitori | D13: -2126673.184 | F13: Utile dell'esercizio | G13: -27397.64398
C14: Totale Investimenti | D14: 4812125.774 | F14: Totale Coperture | G14: 4812125.774

Sheet Fase 7-7c
B1: Fase 7a | C1: Conto Economico al Momento 2
C3: Fatturato | D3: =+D5-D4 -> 9104736.664
C4: Variazione magazzino P.F. | D4: =-'Fase 6'!D11+'Fasi 1-5'!D56 -> 87151.51765
C5: Valore della Produzione | D5: =+'Fasi 1-5'!D49 -> 9191888.181
C7: =+'Fasi 1-5'!C21 -> Costo del Filato | D7: =-$D$5*'Fasi 1-5'!E21*'Fasi 1-5'!D38-D5*'Fasi 1-5'!E31*'Fasi 1-5'!D39-D11*'Fasi 1-5'!F31 -> -6594239.758
C8: =+'Fasi 1-5'!C22 -> Costo dell'energia | D8: =-$D$5*'Fasi 1-5'!E22*'Fasi 1-5'!D38-D5*'Fasi 1-5'!E32*'Fasi 1-5'!D39 -> -736125.7347
C9: =+'Fasi 1-5'!C23 -> Provvigioni | D9: =-$D$3*'Fasi 1-5'!E23 -> -728378.9331
C10: =+'Fasi 1-5'!C24 -> Imballaggi | D10: =-$D$5*'Fasi 1-5'!E24*'Fasi 1-5'!D38-D5*'Fasi 1-5'!E33*'Fasi 1-5'!D39-D11*'Fasi 1-5'!F33 -> -263769.5903
C11: Variazione magazzino M.P. | D11: =-'Fase 6'!D10+'Fasi 1-5'!D53 -> 22556.09825
C12: Costi Variabili | D12: =SUM(D7:D11) -> -8299957.918 | F12: =+D12+D5 -> 891930.2631 | G12: =+F12/D5 -> 0.09703449885
C13: =+'Fasi 1-5'!C12 -> Costo del lavoro | D13: =-'Fasi 1-5'!D12 -> -220000
C14: =+'Fasi 1-5'!C13 -> Utenze | D14: =-'Fasi 1-5'!D13 -> -12000
C15: =+'Fasi 1-5'!C14 -> Manutenzioni | D15: =-'Fasi 1-5'!D14 -> -55000
C16: =+'Fasi 1-5'!C15 -> Assicurazioni | D16: =-'Fasi 1-5'!D15 -> -25000
C17: =+'Fasi 1-5'!C16 -> Consulenze | D17: =-'Fasi 1-5'!D16 -> -28000
C18: Costi Fissi | D18: =SUM(D13:D17) -> -340000
C19: EBITDA/MOL | D19: =+D5+D12+D18 -> 551930.2631
C20: Ammortamenti | D20: =-'Fasi 1-5'!E6 -> -216666.6667
C21: EBIT/Red.Operativo | D21: =+D19+D20 -> 335263.5965
C22: Interessi passivi a lungo | D22: =+'Fasi 1-5'!F8+'Fasi 1-5'!F9 -> -105875.7209
B23: Fase 7b | C23: Interessi passivi a breve | D23: =-'Fase 7b'!C28 -> -114094.4675 | E23: 0.05 | F23: su PFN a Breve Iniziale
A24: (si veda foglio dedicato) | C24: Utile Ante Imposte | D24: =+D21+D22+D23 -> 115293.4081
B25: Fase 7c | C25: Imposte | D25: =IF(D24<0,(-(D24-D22-D23)*G26),(-(G25*D24+G26*(+D24-D23-D22)))) -> -40745.69821 | F25: IRES | G25: 0.24
C26: Utile Netto | D26: =+D24+D25 -> 74547.70989 | F26: IRAP | G26: 0.039

Sheet Fase 7b
B3: Proxy PFN Finale
A4: 1 | B4: PFN Iniziale | C4: =+'Fase 6'!G5 -> 2203792.441
B6: Flussi di Cassa
B7: Mol | C7: =+'Fase 7-7c'!D19 -> 551930.2631
B8: CCNC Iniziale | C8: =+'Fase 6'!D8 -> 2703792.441
B9: CCNC Finale | C9: =+'Fasi 1-5'!D65+IVA!N11 -> 2859986.26
B10: Delta CCNC | C10: =+C8-C9 -> -156193.819
A11: A | B11: Cash Flow operativo | C11: =+C7+C10 -> 395736.4441
B12: Ammortamenti | C12: =+'Fase 7-7c'!D20 -> -216666.6667
B13: Investimenti Netti Iniziali | C13: =+'Fase 6'!D3 -> 2108333.333
B14: Investimenti Netti Finali | C14: =+'Fase 7b'!C13+'Fasi 1-5'!D5-'Fasi 1-5'!E6 -> 1991666.667
B15: Delta Investimenti | C15: =-C14+C13 -> 116666.6667
A16: B | B16: Flusso per Investimenti | C16: =+C12+C15 -> -100000
B17: Flusso per Debito a Medio Lungo | C17: =+'Fasi 1-5'!D8+'Fasi 1-5'!D9 -> -425686.7657
B18: Erogazioni a medio lungo | C18: =+'Fasi 1-5'!D5 -> 100000
B19: Pagamento interessi anno precedente | C19: =-'Fase 6 Budget di Cassa'!F14 -> -110189.622
A20: C | B20: Flusso netto debito a M/L | C20: =+C17+C18+C19 -> -435876.3877
A21: D | B21: Cash Flow Fiscale | C21: =-'Fase 6'!G8*2 -> -16053.87543
A22: E | B22: Flusso Equity | C22: 0
A24: 2 = A+B+C+D | B24: Flussi in uscita | C24: =+C11+C16+C20+C21 -> -156193.819
A26: 1+2 | B26: PFN a Breve Finale pre Oneri Finanziari | C26: =+C4-C24 -> 2359986.26 | D26: =+C26+'Fase 6 Budget di Cassa'!Q29 -> 2203792.441
B28: Oneri Finanziari | C28: =+AVERAGE(C26,C4)*D28 -> 114094.4675 | D28: 0.05

Sheet Fase 8
B1: Fase 8 | C1: Investimenti e Coperture al Momento 2
C3: Attivo Immobilizzato | D3: =+SUM(D4:D7) -> 1991666.667 | F3: Posizione Finanziaria Netta | G3: =SUM(G4:G6) -> 4271784.1
C4: =+'Fasi 1-5'!C2 -> Brevetti | D4: =+'Fase 6'!D4-'Fasi 1-5'!E2 -> 450000 | F4: Pos. Finanziaria Netta a M/L | G4: =+'Fase 6'!G4+'Fasi 1-5'!D5+'Fasi 1-5'!E8+'Fasi 1-5'!E9 -> 1797703.373
C5: =+'Fasi 1-5'!C3 -> Impianti | D5: =+'Fase 6'!D5-'Fasi 1-5'!E3 -> 800000 | F5: Pos. Finanziaria Netta a Breve | G5: =+'Fase 7b'!C26 -> 2359986.26
C6: =+'Fasi 1-5'!C4 -> Attrezzature | D6: =+'Fase 6'!D6-'Fasi 1-5'!E4 -> 666666.6667 | F6: Interessi da liquidare | G6: =+'Fase 7b'!C28 -> 114094.4675
C7: =+'Fasi 1-5'!C5 -> Autocarri | D7: =+'Fasi 1-5'!D5-'Fasi 1-5'!E5 -> 75000
C9: =+'Fase 6'!C8 -> Capitale Circolante | D9: =SUM(D10:D14) -> 2859986.26 | F9: Posizione Tributaria Netta | G9: =-'Fase 7-7c'!D25-'Fase 6'!G8 -> 32718.76049
C10: =+'Fase 6'!C9 -> Crediti V/Clienti | D10: =+'Fasi 1-5'!D59 -> 3702592.91
C11: =+'Fase 6'!C10 -> Magazzino Mat. Prima | D11: =+'Fasi 1-5'!D53 -> 759494.8056
C12: =+'Fase 6'!C11 -> Magazzino P. Finito | D12: =+'Fasi 1-5'!D56 -> 677353.8043 | F12: Mezzi Propri | G12: =+G13+G14 -> 547150.0659
C13: Credito Iva | D13: =+IVA!N11 -> 531835.2082 | F13: Equity | G13: =+'Fase 6'!G11 -> 472602.356
C14: =+'Fase 6'!C13 -> Debiti V/Fornitori | D14: =-'Fasi 1-5'!D63 -> -2811290.469 | F14: Utile dell'esercizio | G14: =+'Fase 7-7c'!D26 -> 74547.70989
C15: Totale Investimenti | D15: =+D3+D9 -> 4851652.926 | F15: Totale Coperture | G15: =+G9+G12+G3 -> 4851652.926

Sheet Fase 9
B1: Fase 9 | C1: Rendiconto Finanziario (Determ. Cash Flow)
D2: Anno 2
C4: EBITDA/M.O.L. | D4: =+'Fase 7-7c'!D19 -> 551930.2631
C5: CCNC Iniziale | D5: =+'Fase 6'!D8 -> 2703792.441
C6: CCNC Finale | D6: =+'Fase 8'!D9 -> 2859986.26
C7: Variazione Circolante | D7: =+D5-D6 -> -156193.819
C9: CASH FLOW OPERATIVO | D9: =+D4+D7 -> 395736.4441
C11: Ammortamenti | D11: =+'Fase 7-7c'!D20 -> -216666.6667
C12: Investimenti Iniziali | D12: =+'Fase 6'!D3 -> 2108333.333
C13: Investimenti Finali | D13: =+'Fase 8'!D3 -> 1991666.667
C14: Investimenti a patrimonio | D14: =+D12-D13 -> 116666.6667
C15: Flusso di Cassa per investimenti | D15: =+D11+D14 -> -100000
C17: CASH FLOW DISPONIBILE | D17: =+D9+D15 -> 295736.4441
C19: Interessi Passivi netti | D19: =+'Fase 7-7c'!D22+'Fase 7-7c'!D23 -> -219970.1884
C20: PFN Iniziale | D20: =+'Fase 6'!G3 -> 4331496.48
C21: PFN Finale | D21: =+'Fase 8'!G3 -> 4271784.1
C22: Variazione dell'indebitamento finanziario | D22: =+D21-D20 -> -59712.38034
C23: Cash Flow per il servizio del debito | D23: =+D22+D19 -> -279682.5687
C25: Cash Flow per la gestione straordinaria | D25: 0
C27: Imposte d'esercizio | D27: =+'Fase 7-7c'!D25 -> -40745.69821
C28: PTN Iniziale | D28: =+'Fase 6'!G8 -> 8026.937715
C29: PTN Finale | D29: =+'Fase 8'!G9 -> 32718.76049
C30: Variazione debiti fiscali | D30: =+D29-D28 -> 24691.82278
C31: Cash Flow Fiscale | D31: =+D27+D30 -> -16053.87543
C33: Utile | D33: =+D4+D11+D19+D25+D27 -> 74547.70989
C34: Equity Iniziale | D34: =+'Fase 6'!G11 -> 472602.356
C35: Equity Finale | D35: =+'Fase 8'!G12 -> 547150.0659
C36: Variazione dei mezzi propri | D36: =D35-D34 -> 74547.70989
C37: CASH FLOW PER LA PROPRIETA' | D37: =D36-D33 -> 0

Sheet Fase 10
B2: Fase 10 | C2: MdC | D2: =+'Fasi 1-5'!E26 -> 0.09714285714
C3: Costi Fissi Operativi | D3: =+'Fasi 1-5'!D42 -> 340000
C4: Valore della Produzione | D4: =+'Fasi 1-5'!D49 -> 9191888.181
C5: Interessi Passivi | D5: =+'Fase 7-7c'!D22+'Fase 7-7c'!D23 -> -219970.1884
C6: PFN | D6: =+'Fase 8'!G3 -> 4271784.1
